[Event "Tatry Open 2018"]
[Site "Tatranska Lomnica"]
[Date "2018.10.01"]
[Round "3"]
[White "Bolacky, Jiri"]
[Black "Steiner, Bruno"]
[Result "0-1"]
[ECO "C45"]
[WhiteElo "2222"]
[BlackElo "2075"]
[Annotator "ChessBase"]
[PlyCount "150"]
[EventDate "2018.09.30"]
[EventType "swiss"]
[EventCountry "SVK"]
[SourceTitle "playchess.com"]
[Source "ChessBase"]
[SourceQuality "1"]
[TimeControl "40/5400+30:1800+30"]

1. e4 {[%emt 0:00:00]} e5 {[%emt 0:07:53]} 2. Nf3 {[%emt 0:00:00]} Nc6 {[%emt 0:00:37]} 3. d4 {[%emt 0:00:09]} exd4 {[%emt 0:00:09]} 4. Nxd4 {[%emt 0:00:09]} Nf6 {[%emt 0:00:09]} 5. Nxc6 {[%emt 0:00:33]} bxc6 {[%emt 0:00:06]} 6. e5 {[%emt 0:00:14]} Qe7 {[%emt 0:00:07]} 7. Qe2 {[%emt 0:00:11]} Nd5 {[%emt 0:00:05]} 8. c4 {[%emt 0:00:23]} Nb6 {[%emt 0:00:14]} 9. Nc3 {[%emt 0:00:58]} Qe6 {[%emt 0:05:59]} 10. Bd2 {[%emt 0:03:51]} a5 {[%emt 0:07:24]} 11. Qe4 {[%emt 0:23:30]} g6 {[%emt 0:08:17]} 12. O-O-O {[%emt 0:16:55]} Bb7 {[%emt 0:12:44]} 13. Qh4 {[%emt 0:16:05]} Be7 {[%emt 0:06:11]} 14. Bg5 {[%emt 0:07:51]} Qxe5 {[%emt 0:11:27]} 15. Bxe7 {[%emt 0:12:59]} Qxe7 {[%emt 0:00:40]} 16. Qd4 {[%emt 0:01:20]} O-O {[%emt 0:05:33]} 17. h4 {[%emt 0:08:55]} c5 {[%emt 0:02:23]} 18. Qf4 {[%emt 0:00:48]} d6 {[%emt 0:01:32]} 19. h5 {[%emt 0:00:01]} Nd7 {[%emt 0:01:06]} 20. Qh6 {[%emt 0:02:32]} g5 {[%emt 0:14:24]} 21. Bd3 {[%emt 0:01:28]} f6 {[%emt 0:00:17]} 22. Bf5 {[%emt 0:01:16]} Nb6 {[%emt 0:08:44]} 23. Rde1 {[%emt 0:00:32]} Qg7 {[%emt 0:00:47]} 24. Qxg7+ {[%emt 0:00:02]} Kxg7 {[%emt 0:00:04]} 25. h6+ {[%emt 0:00:51]} Kf7 {[%emt 0:01:13]} 26. b3 {[%emt 0:00:51]} Rae8 {[%emt 0:02:16]} 27. f3 {[%emt 0:00:18]} Rxe1+ {[%emt 0:01:06]} 28. Rxe1 {[%emt 0:00:01]} Bc8 {[%emt 0:00:09]} 29. Bd3 {[%emt 0:00:42]} Nd7 {[%emt 0:00:53]} 30. Bxh7 {[%emt 0:00:28]} Rh8 {[%emt 0:00:24]} 31. Bf5 {[%emt 0:00:03]} Ne5 {[%emt 0:00:16]} 32. Bc2 {[%emt 0:00:46]} Rxh6 {[%emt 0:00:06]} 33. Nb5 {[%emt 0:00:08]} Rh2 {[%emt 0:00:59]} 34. Rg1 {[%emt 0:00:01]} g4 {[%emt 0:00:09]} 35. f4 {[%emt 0:00:19]} Nc6 {[%emt 0:00:13]} 36. Nxc7 {[%emt 0:00:34]} Nd4 {[%emt 0:00:04]} 37. Bd1 {[%emt 0:01:24]} g3 {[%emt 0:00:07]} 38. Nd5 {[%emt 0:00:49]} Nf5 {[%emt 0:01:50]} 39. Bg4 {[%emt 0:00:22]} Nd4 {[%emt 0:00:41]} 40. Bd1 {[%emt 0:00:16]} Be6 {[%emt 0:01:18]} 41. Ne3 {[%emt 0:15:55]} Bf5 {[%emt 0:20:58]} 42. Nf1 {[%emt 0:06:18]} Rh4 {[%emt 0:00:41]} 43. Nxg3 {[%emt 0:00:10]} Rxf4 {[%emt 0:00:20]} 44. Rf1 {[%emt 0:05:30]} Rxf1 {[%emt 0:00:11]} 45. Nxf1 {[%emt 0:00:01]} Ke6 {[%emt 0:00:16]} 46. Kd2 {[%emt 0:03:32]} Ke5 {[%emt 0:00:08]} 47. Ne3 {[%emt 0:00:59]} Be4 {[%emt 0:01:09]} 48. g3 {[%emt 0:01:03]} f5 {[%emt 0:00:45]} 49. Kc3 {[%emt 0:00:29]} Bh1 {[%emt 0:02:58]} 50. Kd3 {[%emt 0:00:05]} Nc6 {[%emt 0:00:31]} 51. a3 {[%emt 0:00:13]} Nd4 {[%emt 0:00:14]} 52. Nf1 {[%emt 0:00:32]} Be4+ {[%emt 0:00:22]} 53. Kc3 {[%emt 0:00:40]} Ne6 {[%emt 0:00:28]} 54. Ne3 {[%emt 0:01:34]} Bh1 {[%emt 0:00:37]} 55. Bc2 {[%emt 0:00:33]} Nd4 {[%emt 0:02:16]} 56. Bd1 {[%emt 0:00:11]} Ke4 {[%emt 0:02:15]} 57. Nd5 {[%emt 0:00:44]} Bf3 {[%emt 0:00:14]} 58. Nf6+ {[%emt 0:00:30]} Ke3 {[%emt 0:00:34]} 59. Bc2 Ne2+ {[%emt 0:00:27]} 60. Kb2 {[%emt 0:01:26]} Nxg3 {[%emt 0:00:14]} 61. b4 {[%emt 0:00:05]} axb4 {[%emt 0:00:48]} 62. axb4 {[%emt 0:00:02]} cxb4 {[%emt 0:00:20]} 63. Kb3 {[%emt 0:01:38]} Be4 {[%emt 0:01:47]} 64. Bd1 {[%emt 0:00:28]} Kd2 {[%emt 0:01:39]} 65. Nxe4+ {[%emt 0:00:37]} Nxe4 {[%emt 0:00:05]} 66. Bh5 {[%emt 0:00:26]} Ke3 {[%emt 0:00:35]} 67. Kxb4 {[%emt 0:00:22]} f4 {[%emt 0:00:40]} 68. Bg4 {[%emt 0:00:11]} f3 {[%emt 0:00:13]} 69. Bh3 {[%emt 0:00:08]} f2 {[%emt 0:01:29]} 70. Bg2 Kd4 {[%emt 0:01:33]} 71. Kb5 {[%emt 0:01:01]} Kc3 {[%emt 0:00:48]} 72. Bh3 {[%emt 0:00:09]} Ng5 {[%emt 0:00:39]} 73. Bg2 {[%emt 0:00:44]} Ne4 {[%emt 0:00:25]} 74. Bh3 {[%emt 0:00:08]} Kd4 {[%emt 0:00:13]} 75. Bg2 {[%emt 0:00:14]} Nd2 {[%emt 0:00:12]} 0-1

[Event "Tatry Open 2018"]
[Site "Tatranska Lomnica"]
[Date "2018.10.02"]
[Round "4"]
[White "Pniaczek, Marek"]
[Black "Vorisek, Jakub"]
[Result "1/2-1/2"]
[ECO "C03"]
[WhiteElo "2234"]
[BlackElo "2069"]
[Annotator "NA"]
[PlyCount "88"]
[EventDate "2018.09.30"]
[EventType "swiss"]
[EventCountry "SVK"]
[SourceTitle "playchess.com"]
[Source "ChessBase"]
[SourceQuality "1"]
[TimeControl "40/5400+30:1800+30"]

{[%evp 37,86,36,32767,32767,32767,32767,32767,32767,32767,32767,32767,32767,32767,32767,10,5,15,14,9,13,17,3,46,41,75,61,61,77,58,54,113,0,0,0,0,0,0,0,0,0,0,0,12,0,0,-31,-6,-25,-25,-46,0]} 1. e4 {[%emt 0:00:00]} e6 {[%emt 0:00:00]} 2. d4 {[%emt 0:00:00]} d5 {[%emt 0:00:00]} 3. Nd2 {[%emt 0:00:00]} a6 {[%emt 0:00:00]} 4. Ngf3 c5 5. exd5 {[%emt 0:03:35]} exd5 {[%emt 0:00:13]} 6. dxc5 {[%emt 0:00:56]} Bxc5 {[%emt 0:00:06]} 7. Nb3 {[%emt 0:00:42]} Bb6 {[%emt 0:00:09]} 8. Bd3 {[%emt 0:02:17]} Nf6 {[%emt 0:04:11]} 9. Qe2+ {[%emt 0:03:50] C08: French Tarrasch: 3...c5 4 exd5 exd5 sidelines} Qe7 {[%emt 0:16:20]} 10. Qxe7+ {[%emt 0:00:51]} Kxe7 {[%emt 0:00:04]} 11. Bg5 {[%emt 0:02:26]} Nc6 {[%emt 0:01:22]} (11... h6 12. Bh4 Nc6 13. O-O-O g5 14. Bg3 Be6 15. Ne5 Nh5 16. Nxc6+ bxc6 {½-½ (52) Pavlidis,A (2539)-Piorun,K (2651) Katowice 2017}) 12. O-O {[%emt 0:01:36]} Be6 $146 {[%emt 0:01:13]} ({Predecessor:} 12... h6 13. Rfe1+ Be6 14. Be3 Bc7 15. c3 Rhe8 16. h3 Kf8 {1-0 (74) Stabernack,J (1818)-Schmidt,M (1982) Neustadt an der Weinstrasse 2012}) 13. Rfe1 {[%emt 0:02:29]} Rhe8 {[%emt 0:10:16]} 14. c3 {[%emt 0:04:16]} Rad8 {[%emt 0:04:38]} 15. Be3 {[%emt 0:04:21]} Bxe3 {[%emt 0:02:26]} 16. Rxe3 {[%emt 0:00:18]} Kd6 {[%emt 0:04:34]} 17. Nbd4 {[%emt 0:06:08]} Nxd4 {[%emt 0:08:09]} 18. Nxd4 {[%emt 0:00:09]} g6 {[%emt 0:00:31]} 19. f3 {[%emt 0:15:42]} Bd7 {[%emt 0:02:29]} 20. Kf2 {[%emt 0:01:20]} Rxe3 {[%emt 0:00:20]} 21. Kxe3 {[%emt 0:00:20]} Re8+ {[%emt 0:00:10]} 22. Kd2 {[%emt 0:01:08]} Nh5 {[%emt 0:02:56]} 23. g3 {[%emt 0:02:27]} Ng7 {[%emt 0:00:17]} 24. b4 {[%emt 0:02:13]} Ne6 {[%emt 0:04:05]} 25. Nb3 {[%emt 0:00:18]} Ng5 {[%emt 0:02:09]} 26. Rf1 {[%emt 0:02:28]} f6 {[%emt 0:02:46]} 27. Nc5 {[%emt 0:02:07]} Bc6 {[%emt 0:01:55]} 28. h4 {[%emt 0:03:03]} Ne6 {[%emt 0:02:04]} 29. Nb3 {[%emt 0:02:20]} Nc7 {[%emt 0:01:58] [#]} 30. h5 $1 {[%emt 0:05:16]} Bb5 {[%emt 0:06:12]} 31. hxg6 {[%emt 0:01:36]} hxg6 {[%emt 0:00:08]} 32. Rh1 {[%emt 0:00:31]} Bxd3 {[%emt 0:01:39]} 33. Kxd3 {[%emt 0:00:05]} Nb5 {[%emt 0:00:32] [#]} 34. Nc5 {[%emt 0:01:48]} (34. Rh7 $1 $16) 34... b6 {[%emt 0:07:11]} 35. Nb3 {[%emt 0:00:42]} Rc8 {[%emt 0:03:46]} 36. Rc1 {[%emt 0:02:12]} Na3 {[%emt 0:01:31]} 37. Nd4 {[%emt 0:02:00]} Re8 {[%emt 0:01:00]} 38. Rh1 {[%emt 0:00:42]} Nc4 {[%emt 0:00:40]} 39. Rh6 {[%emt 0:00:34]} Re1 {[%emt 0:08:06]} 40. g4 {[%emt 0:08:43]} Rg1 {[%emt 0:08:41]} 41. Rh2 {[%emt 0:32:48]} Rd1+ {[%emt 0:20:27]} 42. Kc2 {[%emt 0:00:00]} Ne3+ {[%emt 0:01:51]} 43. Kb2 {[%emt 0:00:00]} Nc4+ $11 {[%emt 0:01:19]} 44. Kc2 {[%emt 0:00:00]} Ke5 1/2-1/2

[Event "Tatry Open 2018"]
[Site "Tatranska Lomnica"]
[Date "2018.10.02"]
[Round "4"]
[White "Matras, Ondrej"]
[Black "Mandak, Miroslav"]
[Result "1-0"]
[ECO "A40"]
[WhiteElo "2224"]
[BlackElo "1997"]
[Annotator "NA"]
[PlyCount "73"]
[EventDate "2018.09.30"]
[EventType "swiss"]
[EventCountry "SVK"]
[SourceTitle "playchess.com"]
[Source "ChessBase"]
[SourceQuality "1"]
[TimeControl "40/5400+30:1800+30"]

{[%evp 30,73,-1,-82,-30,32767,32767,32767,32767,32767,43,20,61,44,75,54,49,39,58,52,83,79,230,249,255,283,280,266,274,283,515,504,490,580,494,518,580,32767,639,685,705,720,869,804,1006,1092]} 1. d4 {[%emt 0:00:00]} e6 {[%emt 0:00:00]} 2. Nf3 {[%emt 0:00:30]} c5 3. e3 Nf6 {[%emt 0:03:12]} 4. c4 {[%emt 0:00:43]} Qc7 {[%emt 0:03:31]} 5. Nc3 {[%emt 0:01:15]} a6 {[%emt 0:04:34]} 6. Bd3 {[%emt 0:04:13] E10: Blumenfeld Gambit} (6. Be2 b6 7. O-O Bb7 8. d5 exd5 9. Nxd5 Nxd5 10. cxd5 Be7 11. e4 d6 12. Bf4 Nd7 13. Qc2 O-O {½-½ (54) Malisauskas,V (2428)-Meskovs,N (2493) Vilnius 2015}) 6... d6 {[%emt 0:01:22]} 7. O-O {[%emt 0:01:04]} g6 {[%emt 0:02:31]} 8. b3 {[%emt 0:03:24]} Bg7 {[%emt 0:01:17]} 9. Bb2 {[%emt 0:00:02]} O-O {[%emt 0:00:48]} 10. Re1 $146 {[%emt 0:02:04]} ({Predecessor:} 10. Qe2 b6 11. dxc5 bxc5 {½-½ (57) Hernandez Delgado,G (1976)-Buil Rello,J (1955) Spain 2011}) 10... b6 {[%emt 0:05:29]} 11. Ng5 {[%emt 0:13:39]} Bb7 {[%emt 0:04:48]} 12. f3 {[%emt 0:02:48]} Nc6 {[%emt 0:04:08]} 13. Nce4 {[%emt 0:02:24]} Ne8 {[%emt 0:14:20]} 14. Bf1 {[%emt 0:02:14]} Qe7 {[%emt 0:00:52]} 15. Nh3 {[%emt 0:04:36]} Nc7 {[%emt 0:09:52]} (15... cxd4 $17 16. exd4 Nc7) 16. Qd2 {[%emt 0:02:18]} (16. dxc5 $1 $11 dxc5 17. Bxg7 Kxg7 18. Qc2) 16... Rad8 {[%emt 0:02:12]} 17. Qf2 {[%emt 0:05:04]} e5 {[%emt 0:04:48]} 18. d5 {[%emt 0:11:26]} Nb8 {[%emt 0:00:24]} 19. g4 {[%emt 0:02:21]} Bc8 {[%emt 0:02:01]} 20. Ng3 {[%emt 0:10:55]} Ne8 {[%emt 0:03:49]} 21. Qg2 {[%emt 0:04:17]} Kh8 {[%emt 0:04:25]} 22. Kh1 {[%emt 0:00:15]} Nd7 {[%emt 0:03:44]} 23. Nf2 {[%emt 0:06:34]} Qh4 {[%emt 0:03:02]} 24. Bd3 {[%emt 0:03:16]} Nb8 {[%emt 0:00:47]} 25. Rg1 {[%emt 0:01:13]} f5 {[%emt 0:06:50]} (25... b5 $16) 26. gxf5 {[%emt 0:00:59]} gxf5 {[%emt 0:00:25]} 27. f4 {[%emt 0:01:55]} Qh6 {[%emt 0:03:26]} 28. Nh3 {[%emt 0:01:19]} e4 {[%emt 0:01:38] [#]} 29. Nh5 $1 {[%emt 0:06:38]} Bxb2 $2 (29... Rd7) 30. Qxb2+ Nf6 {[%emt 0:03:36]} 31. Be2 {[%emt 0:00:59]} Bd7 {[%emt 0:02:55]} 32. Rg5 {[%emt 0:06:08]} Be8 {[%emt 0:03:25]} 33. Rag1 {[%emt 0:00:22]} Nbd7 {[%emt 0:00:38]} 34. Rxf5 {[%emt 0:00:32]} Bg6 {[%emt 0:01:26]} 35. Rfg5 {[%emt 0:01:23]} Rde8 {[%emt 0:00:33]} 36. Nf2 {[%emt 0:00:34]} Re7 {[%emt 0:00:33]} 37. Ng4 $18 {[%emt 0:00:14]} 1-0

[Event "Tatry Open 2018"]
[Site "Tatranska Lomnica"]
[Date "2018.10.02"]
[Round "4"]
[White "Macko, Michal"]
[Black "Olvecky, Jaroslav"]
[Result "1-0"]
[ECO "B24"]
[WhiteElo "2187"]
[BlackElo "1912"]
[Annotator "ChessBase"]
[PlyCount "93"]
[EventDate "2018.09.30"]
[EventType "swiss"]
[EventCountry "SVK"]
[SourceTitle "playchess.com"]
[Source "ChessBase"]
[SourceQuality "1"]
[TimeControl "40/5400+30:1800+30"]

1. e4 {[%emt 0:00:00]} c5 {[%emt 0:00:00]} 2. Nc3 {[%emt 0:01:19]} Nc6 3. Bb5 Nd4 {[%emt 0:03:54]} 4. Bc4 {[%emt 0:00:41]} e6 {[%emt 0:00:49]} 5. Nge2 {[%emt 0:00:06]} a6 {[%emt 0:03:22]} 6. Nxd4 {[%emt 0:00:54]} cxd4 {[%emt 0:00:02]} 7. Ne2 {[%emt 0:00:09]} b5 {[%emt 0:00:45]} 8. Bb3 {[%emt 0:00:09]} Bc5 {[%emt 0:04:20]} 9. O-O {[%emt 0:02:43]} Bb7 {[%emt 0:03:38]} 10. d3 {[%emt 0:01:01]} Ne7 {[%emt 0:01:49]} 11. c3 {[%emt 0:04:39]} dxc3 {[%emt 0:01:38]} 12. bxc3 {[%emt 0:00:07]} Bb6 {[%emt 0:00:09]} 13. Be3 {[%emt 0:02:26]} f5 {[%emt 0:04:27]} 14. Bd4 {[%emt 0:13:20]} O-O {[%emt 0:01:46]} 15. f3 {[%emt 0:00:18]} Kh8 {[%emt 0:03:39]} 16. Qd2 {[%emt 0:02:52]} Rc8 {[%emt 0:11:12]} 17. Qe3 {[%emt 0:03:03]} Bxd4 {[%emt 0:04:14]} 18. Qxd4 {[%emt 0:00:39]} Nc6 {[%emt 0:00:05]} 19. Qe3 {[%emt 0:00:22]} Qc7 {[%emt 0:05:34]} 20. a4 {[%emt 0:07:24]} b4 {[%emt 0:09:12]} 21. cxb4 {[%emt 0:01:38]} Nxb4 {[%emt 0:01:10]} 22. a5 {[%emt 0:04:16]} Qc5 {[%emt 0:04:53]} 23. Qxc5 {[%emt 0:02:26]} Rxc5 {[%emt 0:00:02]} 24. Bc4 {[%emt 0:01:33]} d5 {[%emt 0:10:17]} 25. Rab1 {[%emt 0:01:06]} dxc4 {[%emt 0:03:21]} 26. Rxb4 {[%emt 0:00:18]} cxd3 {[%emt 0:07:01]} 27. Nd4 {[%emt 0:01:53]} Bc8 {[%emt 0:00:44]} 28. Nb3 {[%emt 0:04:13]} Rc3 {[%emt 0:01:48]} 29. Rb1 {[%emt 0:01:17]} fxe4 {[%emt 0:00:57]} 30. Rxe4 {[%emt 0:00:18]} Bd7 {[%emt 0:03:18]} 31. Rd4 {[%emt 0:13:48]} Bb5 {[%emt 0:00:02]} 32. Rd6 {[%emt 0:01:37]} h6 {[%emt 0:02:49]} 33. Kf2 {[%emt 0:01:00]} Rc2+ {[%emt 0:01:08]} 34. Kg3 {[%emt 0:00:27]} Bc4 {[%emt 0:04:06]} 35. Nd4 {[%emt 0:00:49]} Ra2 {[%emt 0:02:10]} 36. Nc6 {[%emt 0:00:50]} Bd5 {[%emt 0:01:23]} 37. Ne7 {[%emt 0:01:03]} Re8 {[%emt 0:01:19]} 38. Ng6+ {[%emt 0:03:58]} Kh7 {[%emt 0:00:45]} 39. Nf4 {[%emt 0:00:07]} Rxa5 {[%emt 0:00:21]} 40. Nxd3 {[%emt 0:00:17]} Bc4 41. Rb7 {[%emt 0:32:20]} Rd5 {[%emt 0:31:12]} 42. Rxd5 {[%emt 0:02:20]} exd5 {[%emt 0:00:02]} 43. Nc5 {[%emt 0:00:41]} d4 {[%emt 0:00:00]} 44. Rb4 {[%emt 0:00:00]} d3 {[%emt 0:00:00]} 45. Rxc4 {[%emt 0:00:00]} Rc8 {[%emt 0:00:00]} 46. Kf2 {[%emt 0:00:00]} a5 {[%emt 0:00:00]} 47. Rc3 {[%emt 0:00:00]} 1-0

[Event "Tatry Open 2018"]
[Site "Tatranska Lomnica"]
[Date "2018.10.02"]
[Round "4"]
[White "Kolesar, Milan"]
[Black "Hursky, Karel P"]
[Result "1-0"]
[ECO "E16"]
[WhiteElo "2133"]
[BlackElo "2051"]
[Annotator "ChessBase"]
[PlyCount "83"]
[EventDate "2018.09.30"]
[EventType "swiss"]
[EventCountry "SVK"]
[SourceTitle "playchess.com"]
[Source "ChessBase"]
[SourceQuality "1"]
[TimeControl "40/5400+30:1800+30"]

1. Nf3 {[%emt 0:00:00]} e6 {[%emt 0:06:55]} 2. d4 {[%emt 0:00:00]} Nf6 {[%emt 0:03:54]} 3. c4 {[%emt 0:00:00]} b6 {[%emt 0:01:30]} 4. g3 {[%emt 0:00:27]} Bb7 {[%emt 0:03:03]} 5. Bg2 {[%emt 0:00:07]} Bb4+ {[%emt 0:01:46]} 6. Bd2 {[%emt 0:01:19]} Qe7 {[%emt 0:04:17]} 7. O-O {[%emt 0:01:23]} Bxd2 {[%emt 0:00:30]} 8. Qxd2 {[%emt 0:00:37]} O-O {[%emt 0:03:32]} 9. Nc3 {[%emt 0:00:51]} d6 {[%emt 0:03:03]} 10. Qc2 {[%emt 0:03:33]} Nbd7 {[%emt 0:03:31]} 11. e4 {[%emt 0:02:14]} e5 {[%emt 0:08:42]} 12. Rfe1 {[%emt 0:01:31]} c6 {[%emt 0:24:14]} 13. Rad1 {[%emt 0:02:25]} Rad8 {[%emt 0:00:54]} 14. b3 {[%emt 0:05:25]} g6 {[%emt 0:00:40]} 15. Qd2 {[%emt 0:04:21]} Kg7 {[%emt 0:03:56]} 16. h3 {[%emt 0:01:16]} h6 {[%emt 0:04:02]} 17. Nh4 {[%emt 0:05:09]} Nh5 {[%emt 0:03:45]} 18. Qe3 {[%emt 0:19:42]} Rfe8 {[%emt 0:05:06]} 19. Nf3 {[%emt 0:07:57]} Nf8 {[%emt 0:02:17]} 20. Rd2 {[%emt 0:00:37]} f6 {[%emt 0:06:28]} 21. Red1 {[%emt 0:05:40]} Bc8 {[%emt 0:02:13]} 22. Nh2 {[%emt 0:03:40]} Kh7 {[%emt 0:01:17]} 23. Ng4 {[%emt 0:01:33]} Bxg4 {[%emt 0:02:06]} 24. hxg4 {[%emt 0:00:07]} Ng7 {[%emt 0:00:16]} 25. Bf3 {[%emt 0:01:07]} exd4 {[%emt 0:01:36]} 26. Rxd4 {[%emt 0:02:09]} Nfe6 {[%emt 0:00:26]} 27. R4d2 {[%emt 0:00:48]} Ng5 {[%emt 0:00:31]} 28. Bg2 {[%emt 0:08:01]} Nf7 {[%emt 0:01:16]} 29. f4 {[%emt 0:02:21]} f5 {[%emt 0:00:53]} 30. gxf5 {[%emt 0:00:47]} Nxf5 {[%emt 0:00:42]} 31. Qf2 {[%emt 0:04:30]} Ng7 {[%emt 0:00:08]} 32. e5 {[%emt 0:01:38]} Qc7 {[%emt 0:00:40]} 33. Ne4 {[%emt 0:00:39]} Re6 {[%emt 0:01:00]} 34. Bh3 {[%emt 0:03:13]} Nf5 {[%emt 0:00:06]} 35. g4 {[%emt 0:01:05]} Ng7 {[%emt 0:00:05]} 36. Nf6+ {[%emt 0:02:02]} Kh8 {[%emt 0:00:07]} 37. g5 {[%emt 0:00:54]} h5 {[%emt 0:01:21]} 38. Bxe6 {[%emt 0:01:00]} Nxe6 {[%emt 0:00:05]} 39. exd6 {[%emt 0:01:06]} Rxd6 {[%emt 0:00:50]} 40. Rxd6 {[%emt 0:00:31]} Nxd6 {[%emt 0:00:04]} 41. Qb2 {[%emt 0:33:00]} Ng7 {[%emt 0:30:15]} 42. Qe5 {[%emt 0:00:37]} 1-0

[Event "Tatry Open 2018"]
[Site "Tatranska Lomnica"]
[Date "2018.10.02"]
[Round "4"]
[White "Gresova, Zuzana"]
[Black "Skreno, Vladimir"]
[Result "0-1"]
[ECO "B70"]
[WhiteElo "1901"]
[BlackElo "2160"]
[Annotator "ChessBase"]
[PlyCount "80"]
[EventDate "2018.09.30"]
[EventType "swiss"]
[EventCountry "SVK"]
[SourceTitle "playchess.com"]
[Source "ChessBase"]
[SourceQuality "1"]
[TimeControl "40/5400+30:1800+30"]

1. e4 {[%emt 0:00:00]} c5 {[%emt 0:00:00]} 2. Nf3 {[%emt 0:00:00]} d6 {[%emt 0:00:05]} 3. d4 {[%emt 0:00:00]} cxd4 {[%emt 0:00:02]} 4. Nxd4 {[%emt 0:00:04]} Nf6 {[%emt 0:00:08]} 5. Nc3 g6 6. Be2 {[%emt 0:04:35]} Bg7 {[%emt 0:01:21]} 7. Nb3 {[%emt 0:02:06]} Nc6 {[%emt 0:02:02]} 8. Bg5 {[%emt 0:01:33]} Be6 {[%emt 0:06:04]} 9. O-O {[%emt 0:01:15]} Nd7 {[%emt 0:03:50]} 10. Kh1 {[%emt 0:05:59]} O-O {[%emt 0:06:25]} 11. f4 {[%emt 0:05:46]} f6 {[%emt 0:02:40]} 12. Bh4 {[%emt 0:00:50]} Rc8 {[%emt 0:02:49]} 13. Rb1 {[%emt 0:03:26]} Re8 {[%emt 0:06:54]} 14. Nd5 {[%emt 0:05:36]} Nc5 {[%emt 0:13:42]} 15. Nxc5 {[%emt 0:04:07]} dxc5 {[%emt 0:00:53]} 16. c3 {[%emt 0:02:27]} Bf7 {[%emt 0:04:43]} 17. Qa4 {[%emt 0:06:04]} e6 {[%emt 0:01:48]} 18. Ne3 {[%emt 0:12:55]} Qd2 {[%emt 0:02:14]} 19. Qc2 {[%emt 0:03:15]} Qxe3 {[%emt 0:05:56]} 20. Rf3 {[%emt 0:01:40]} Nd4 {[%emt 0:00:33]} 21. cxd4 {[%emt 0:10:21]} cxd4 {[%emt 0:03:30]} 22. Bc4 {[%emt 0:01:50]} d3 {[%emt 0:05:41]} 23. Qxd3 {[%emt 0:02:25]} Qxd3 {[%emt 0:01:19]} 24. Bxd3 {[%emt 0:00:22]} e5 {[%emt 0:03:09]} 25. fxe5 {[%emt 0:04:34]} Rxe5 {[%emt 0:02:52]} 26. Bxf6 {[%emt 0:01:46]} Bxf6 {[%emt 0:00:10]} 27. Rxf6 {[%emt 0:00:06]} Bxa2 {[%emt 0:07:58]} 28. Ra1 {[%emt 0:05:42]} Bc4 {[%emt 0:02:21]} 29. Bxc4+ {[%emt 0:01:40]} Rxc4 {[%emt 0:00:01]} 30. h3 {[%emt 0:01:10]} Rb4 {[%emt 0:06:14]} 31. Rxa7 {[%emt 0:01:49]} Rxb2 {[%emt 0:00:36]} 32. Rd6 {[%emt 0:02:20]} Kf7 {[%emt 0:04:03]} 33. Rd4 {[%emt 0:01:11]} Ke6 {[%emt 0:02:49]} 34. h4 {[%emt 0:08:57]} Rh5 {[%emt 0:00:48]} 35. e5 {[%emt 0:00:35]} Rxe5 {[%emt 0:00:43]} 36. Raa4 {[%emt 0:00:28]} h5 {[%emt 0:01:25]} 37. Rab4 {[%emt 0:00:46]} Rxb4 {[%emt 0:00:19]} 38. Rxb4 {[%emt 0:00:08]} b5 {[%emt 0:00:12]} 39. Kg1 {[%emt 0:00:49]} Kd6 {[%emt 0:00:57]} 40. Kf2 {[%emt 0:00:32]} Kc5 {[%emt 0:00:11]} 0-1

[Event "Tatry Open 2018"]
[Site "Tatranska Lomnica"]
[Date "2018.10.03"]
[Round "5"]
[White "Stanko, Ivan"]
[Black "Franzen, Jozef"]
[Result "0-1"]
[ECO "B06"]
[WhiteElo "1881"]
[BlackElo "2254"]
[Annotator "RC"]
[PlyCount "102"]
[EventDate "2018.09.30"]
[EventType "swiss"]
[EventCountry "SVK"]
[SourceTitle "playchess.com"]
[Source "ChessBase"]
[SourceQuality "1"]
[TimeControl "40/5400+30:1800+30"]

1. e4 {[%emt 0:00:23]} g6 {[%emt 0:00:00]} 2. d4 {[%emt 0:00:45]} Bg7 {[%emt 0:00:00]} 3. Be3 {[%emt 0:01:52]} d6 {[%emt 0:00:04]} 4. f3 {[%emt 0:02:36]} c5 {[%emt 0:00:48]} 5. c3 {[%emt 0:02:12]} Nd7 {[%emt 0:00:27]} 6. Bb5 {[%emt 0:02:54]} Qc7 {[%emt 0:01:36]} 7. Ne2 {[%emt 0:01:36]} a6 {[%emt 0:00:41]} 8. Bd3 {[%emt 0:04:07]} b6 {[%emt 0:01:14]} 9. O-O {[%emt 0:01:53]} Bb7 {[%emt 0:00:33]} 10. Nd2 {[%emt 0:00:55]} e6 {[%emt 0:01:31]} 11. a4 {[%emt 0:02:24]} Ngf6 {[%emt 0:00:38]} 12. Ng3 {[%emt 0:05:29]} O-O {[%emt 0:00:58]} 13. Re1 {[%emt 0:03:18]} Kh8 {[%emt 0:02:48]} 14. Qe2 {[%emt 0:06:49]} Ng8 {[%emt 0:01:35]} 15. f4 {[%emt 0:02:28]} f5 {[%emt 0:05:48]} 16. Nf3 {[%emt 0:05:27]} a5 {[%emt 0:11:54]} 17. Qd2 {[%emt 0:05:37]} Ngf6 {[%emt 0:01:11]} 18. e5 {[%emt 0:05:58]} Ng4 {[%emt 0:00:43]} 19. Ng5 {[%emt 0:02:10]} Rae8 {[%emt 0:01:44]} 20. Bb5 {[%emt 0:00:53]} h6 {[%emt 0:01:52]} 21. Nf3 {[%emt 0:00:31]} Bxf3 {[%emt 0:01:28]} 22. gxf3 {[%emt 0:00:08]} Nxe3 {[%emt 0:00:06]} 23. Qxe3 {[%emt 0:01:53]} cxd4 {[%emt 0:03:22]} 24. cxd4 {[%emt 0:00:42]} dxe5 {[%emt 0:00:14]} 25. dxe5 {[%emt 0:00:30]} Rd8 {[%emt 0:00:47]} 26. Rac1 Qb7 {[%emt 0:06:33]} 27. Ne2 {[%emt 0:05:58]} Nc5 {[%emt 0:00:27]} 28. Red1 {[%emt 0:02:08]} Rxd1+ {[%emt 0:04:28]} 29. Rxd1 {[%emt 0:00:00]} Rc8 {[%emt 0:00:09]} 30. Kg2 {[%emt 0:02:05]} Bf8 {[%emt 0:00:44]} 31. Nd4 {[%emt 0:02:39]} Rd8 {[%emt 0:01:56]} 32. Qe1 {[%emt 0:01:18]} Be7 {[%emt 0:02:18]} 33. Ne2 {[%emt 0:08:29]} Rg8 {[%emt 0:01:48]} 34. h4 {[%emt 0:01:22]} Kg7 {[%emt 0:02:49]} 35. Qc3 {[%emt 0:01:39]} Kf7 {[%emt 0:03:02]} 36. Kh3 {[%emt 0:01:07]} Qc7 {[%emt 0:04:43]} 37. Rd7 {[%emt 0:03:23]} Qc8 {[%emt 0:00:31]} 38. Rd1 {[%emt 0:01:15]} g5 {[%emt 0:00:41]} 39. Nd4 {[%emt 0:05:41]} g4+ {[%emt 0:02:34]} 40. Kh2 {[%emt 0:03:23]} gxf3 {[%emt 0:04:49]} 41. Nxf3 {[%emt 0:24:13]} Rg4 {[%emt 0:14:56]} 42. Qc4 {[%emt 0:02:49]} Qg8 {[%emt 0:04:07]} 43. Rg1 {[%emt 0:03:48]} Rxg1 {[%emt 0:03:36]} 44. Nxg1 {[%emt 0:00:06]} Qg4 {[%emt 0:00:25]} 45. Qf1 {[%emt 0:02:51]} Qxh4+ {[%emt 0:05:33]} 46. Nh3 {[%emt 0:00:18]} Ne4 {[%emt 0:02:33]} 47. Qf3 {[%emt 0:01:30]} Bc5 {[%emt 0:01:14]} 48. Kg2 {[%emt 0:01:39]} Qg4+ {[%emt 0:03:54]} 49. Qxg4 {[%emt 0:00:07]} fxg4 {[%emt 0:00:02]} 50. Ng1 {[%emt 0:00:06]} Bxg1 {[%emt 0:02:03]} 51. Kxg1 {[%emt 0:00:06]} Kg6 {[%emt 0:00:39]} 0-1